bitfinex/quotes_SOLUSD_20240727
["timestamp","ask_amount","ask_price","bid_price","bid_amount"]
[1722087360630,17.78395306,187.78,187.72,10.79]
[1722087361241,17.78395306,187.78,187.7,12.29]
[1722087361242,30.07395306,187.78,187.7,12.29]
[1722087361436,17.78395306,187.78,187.73,12.29]
[1722087361747,17.78395306,187.78,187.74,12.29]
[1722087361927,17.78395306,187.78,187.66,61.3523]
[1722087362124,17.78395306,187.78,187.74,12.29]
[1722087362328,1.23595306,187.78,187.76,12.29]
[1722087363944,1.23595306,187.78,187.77,12.29]
[1722087364130,1.23595306,187.78,187.69,1.06519236]
[1722087364339,1.23595306,187.78,187.74,49.16]
[1722087364766,1.23595306,187.78,187.77,12.29]
[1722087364929,1.23595306,187.78,187.75,12.29]
[1722087365345,1.23595306,187.78,187.72,15.2669]
[1722087365549,1.23595306,187.78,187.75,12.29]
[1722087365839,1.23595306,187.78,187.72,15.2669]
[1722087366043,1.23595306,187.78,187.74,12.29]
[1722087366237,1.23595306,187.78,187.76,12.29]
[1722087366441,1.23595306,187.78,187.77,12.29]
[1722087367846,1.23595306,187.78,187.72,15.2669]
[1722087368032,1.23595306,187.78,187.77,12.29]
[1722087368452,1.23595306,187.78,187.77,57.29]
[1722087368737,1.23595306,187.78,187.77,12.29]
[1722087369744,1.23595306,187.78,187.72,15.2669]
[1722087370060,1.23595306,187.78,187.73,12.29]
[1722087370754,5.3242,187.82,187.68,22.46561687]
[1722087370755,40.85118496,187.87,187.75,12.29]
[1722087370969,12.29,187.82,187.75,12.29]
[1722087371757,12.29,187.82,187.69,1.06497812]
[1722087371758,5.3236,187.85,187.76,12.29]
[1722087371936,12.29,187.82,187.69,1.06497812]
[1722087372137,12.29,187.79,187.72,12.29]
[1722087372444,11.79,187.79,187.72,12.29]
[1722087372762,11.79,187.79,187.68,21.4005]
[1722087372763,12.29,187.76,187.69,12.29]
[1722087373543,12.29,187.77,187.7,12.29]
[1722087373837,12.29,187.78,187.71,12.29]
[1722087374037,12.29,187.78,187.68,21.4005]
[1722087374247,12.29,187.77,187.7,12.29]
[1722087375649,12.29,187.78,187.71,12.29]
[1722087375859,12.29,187.79,187.72,12.29]
[1722087376553,6.647,187.82,187.68,22.46569636]
[1722087376554,5.3242,187.82,187.73,12.29]
[1722087376748,12.29,187.83,187.76,12.29]
[1722087377250,12.29,187.85,187.78,12.29]
[1722087377450,12.29,187.82,187.75,12.29]
[1722087377856,12.29,187.82,187.68,38.53569636]
[1722087378054,12.29,187.83,187.76,12.29]
[1722087378382,12.29,187.82,187.75,12.29]
[1722087378561,12.29,187.82,187.71,1.0649129]
[1722087378562,12.29,187.84,187.77,12.29]
[1722087379247,12.29,187.83,187.76,12.29]
[1722087379575,12.29,187.84,187.77,12.29]
[1722087380447,1.23595306,187.86,187.75,12.29]
[1722087380448,12.29,187.82,187.75,12.29]
[1722087380842,12.29,187.82,187.71,1.06491147]
[1722087380843,12.29,187.83,187.76,12.29]
[1722087381041,12.29,187.83,187.77,12.29]
[1722087381273,12.29,187.83,187.71,1.06491147]
[1722087381459,12.29,187.83,187.76,12.29]
[1722087381662,9.60860927,187.82,187.76,12.29]
[1722087381861,9.60859117,187.81,187.76,12.29]
[1722087382063,12.29,187.83,187.71,17.13491147]
[1722087382251,12.29,187.83,187.75,12.29]
[1722087382252,21.89890222,187.82,187.75,12.29]
[1722087382566,12.29,187.8,187.73,12.29]
[1722087382760,9.60890222,187.79,187.73,12.29]
[1722087383348,9.60890222,187.79,187.69,1.06502341]
[1722087383557,9.60890222,187.79,187.72,12.29]
[1722087383955,9.60890222,187.79,187.74,12.29]
[1722087384158,1.23595306,187.86,187.75,12.29]
[1722087384472,12.29,187.82,187.75,12.29]
[1722087384661,12.29,187.81,187.74,12.29]
[1722087384978,21.89920065,187.81,187.74,12.29]
[1722087385158,9.60920065,187.8,187.74,12.29]
[1722087386758,9.60920065,187.8,187.69,17.1351089]
[1722087386759,9.60920065,187.79,187.69,17.1351089]
[1722087386962,9.60920065,187.8,187.74,12.29]
[1722087387257,12.29,187.81,187.74,12.29]
[1722087387463,9.60898037,187.8,187.74,12.29]
[1722087387665,9.60898037,187.8,187.75,12.29]
[1722087387858,9.60898037,187.79,187.75,12.29]
[1722087388271,12.29,187.8,187.7,45.0]
[1722087388478,12.29,187.8,187.68,21.4005]
[1722087388479,9.6091402,187.79,187.73,12.29]
[1722087388779,9.6091402,187.78,187.73,12.29]
[1722087388974,9.6091402,187.79,187.73,12.29]
[1722087389158,9.60987515,187.78,187.73,12.29]
[1722087389354,12.29,187.78,187.7,1.06508908]
[1722087389571,9.60987625,187.77,187.74,12.29]
[1722087389773,20.0,187.83,187.75,13.35510024]
[1722087389774,12.29,187.81,187.75,13.35510024]
[1722087389980,9.60933972,187.8,187.74,12.29]
[1722087390175,9.60933972,187.79,187.74,12.29]
[1722087390378,9.60933972,187.78,187.73,12.29]
[1722087390679,9.60933972,187.77,187.74,12.29]
[1722087390855,37.89167303,187.85,187.74,12.29]
[1722087390856,9.60933972,187.84,187.74,12.29]
[1722087391057,12.29,187.81,187.74,12.29]
[1722087391663,9.60918195,187.8,187.73,12.29]
[1722087392568,9.60918195,187.83,187.73,12.29]
[1722087392766,12.29,187.8,187.73,12.29]
[1722087392978,9.60918195,187.79,187.73,12.29]
[1722087393284,9.60918195,187.78,187.75,12.29]
[1722087393482,9.60918195,187.8,187.75,12.29]
[1722087393871,9.60918195,187.81,187.75,12.29]
[1722087394064,9.60918195,187.8,187.75,12.29]
[1722087394266,12.29,187.82,187.75,12.29]
[1722087394578,9.60886333,187.79,187.75,12.29]
[1722087394780,9.60886333,187.81,187.75,12.29]
[1722087394972,9.60886333,187.81,187.69,46.0650506]
[1722087394973,21.89886333,187.81,187.69,46.0650506]
[1722087395167,9.60886333,187.8,187.74,12.29]
[1722087395704,21.89886333,187.8,187.73,12.29]
[1722087395878,9.60886333,187.79,187.73,12.29]
[1722087396081,9.60886333,187.79,187.74,12.29]
[1722087396281,9.60886333,187.79,187.75,12.29]
[1722087396485,9.60886333,187.83,187.76,12.29]
[1722087396683,9.60886333,187.78,187.76,12.29]
[1722087396987,13.52595306,187.84,187.77,12.29]
[1722087397285,9.60909911,187.83,187.77,12.29]
[1722087397667,9.60907264,187.82,187.76,12.29]
[1722087397879,21.89907264,187.82,187.69,62.1350506]
[1722087398182,21.89907264,187.81,187.74,12.29]
[1722087398377,9.60907264,187.8,187.7,20.0]
[1722087398580,9.60907264,187.8,187.75,12.29]
[1722087398786,9.60907264,187.79,187.75,12.29]
[1722087398967,9.60907264,187.81,187.75,12.29]
[1722087399571,9.60907264,187.81,187.7,20.0]
[1722087399572,21.89907264,187.81,187.7,20.0]
[1722087399891,9.60907264,187.8,187.74,12.29]
[1722087400096,12.29,187.79,187.68,21.4005]
[1722087400261,21.89907264,187.78,187.71,12.29]
[1722087400465,9.60907264,187.77,187.71,12.29]
[1722087400676,12.29,187.78,187.68,21.4005]
[1722087400883,25.54480861,187.84,187.73,12.29]
[1722087401093,9.60999046,187.76,187.73,13.35519929]
[1722087401306,9.60999046,187.76,187.73,12.29]
[1722087401592,12.29,187.79,187.68,21.4005]
[1722087401784,21.89998464,187.78,187.71,12.29]
[1722087401970,9.60998464,187.77,187.71,12.29]
[1722087402170,9.60998464,187.76,187.71,12.29]
[1722087402485,9.60998464,187.75,187.71,12.29]
[1722087402686,9.60998464,187.77,187.72,12.29]
[1722087402883,9.60998464,187.76,187.72,12.29]
[1722087403075,12.29,187.81,187.74,12.29]
[1722087403264,9.60958852,187.8,187.76,12.29]
[1722087403471,9.60958852,187.79,187.77,12.29]
[1722087403681,9.60958852,187.78,187.77,12.29]
[1722087403880,1.23595306,187.83,187.77,12.29]
[1722087404083,12.29,187.82,187.68,38.53575]
[1722087404384,9.60945861,187.81,187.75,12.29]
[1722087404578,9.60945861,187.8,187.75,12.29]
[1722087404785,9.60945861,187.79,187.75,12.29]
[1722087405084,9.60945861,187.78,187.75,12.29]
[1722087405282,12.29,187.81,187.74,12.29]
[1722087405591,9.60860908,187.8,187.75,12.29]
[1722087405784,9.60860908,187.79,187.75,12.29]
[1722087405984,9.60860908,187.81,187.75,12.29]
[1722087406171,9.60860908,187.8,187.73,12.29]
[1722087406370,9.60860908,187.8,187.7,1.06502446]
[1722087406371,9.60860908,187.8,187.74,12.29]
[1722087406573,9.60860908,187.81,187.75,12.29]
[1722087406772,9.60860908,187.8,187.7,1.06502446]
[1722087406991,9.60860908,187.8,187.74,12.29]
[1722087407193,12.29,187.81,187.74,12.29]
[1722087407495,9.60936497,187.79,187.74,12.29]
[1722087407702,12.29,187.81,187.73,12.29]
[1722087407703,9.60936497,187.8,187.73,12.29]
[1722087407870,21.89936497,187.79,187.72,12.29]
[1722087408069,21.89936497,187.78,187.71,12.29]
[1722087408285,9.60936497,187.77,187.71,12.29]
[1722087408492,9.60936497,187.77,187.72,12.29]
[1722087408691,1.23595306,187.83,187.72,12.29]
[1722087408880,1.23595306,187.83,187.74,12.29]
[1722087408881,12.29,187.81,187.74,12.29]
[1722087409075,9.60884177,187.8,187.74,12.29]
[1722087409278,12.29,187.8,187.73,12.29]
[1722087409589,21.89884177,187.79,187.72,12.29]
[1722087409797,9.60884177,187.78,187.72,12.29]
[1722087409974,12.29,187.79,187.72,12.29]
[1722087409975,9.60884177,187.77,187.72,12.29]
[1722087410170,10.79,187.79,187.72,12.29]
[1722087410582,12.29,187.8,187.73,12.29]
[1722087410775,9.60873049,187.78,187.73,12.29]
[1722087410972,9.60873049,187.79,187.73,12.29]
[1722087411189,9.60873049,187.78,187.73,12.29]
[1722087411403,9.60873049,187.8,187.73,12.29]
[1722087412981,21.89873049,187.82,187.73,12.29]
[1722087413181,9.60873049,187.81,187.73,12.29]
[1722087413686,12.29,187.82,187.73,12.29]
[1722087413886,12.29,187.82,187.69,21.06507034]
[1722087414082,21.89886114,187.8,187.69,20.0]
[1722087414280,21.89886114,187.8,187.68,22.46562717]
[1722087414281,12.29,187.79,187.71,12.29]
[1722087414579,9.60886114,187.78,187.71,12.29]
[1722087414780,9.60886114,187.8,187.71,12.29]
[1722087415193,9.60886114,187.8,187.74,12.29]
[1722087415571,9.60886114,187.8,187.75,12.29]
[1722087415801,9.60886114,187.81,187.75,12.29]
[1722087416297,21.89886114,187.81,187.74,12.29]
[1722087416508,9.60886114,187.8,187.74,12.29]
[1722087416687,12.29,187.81,187.74,12.29]
[1722087416688,9.60886114,187.79,187.74,12.29]
[1722087416886,12.29,187.8,187.68,37.4705]
[1722087417079,12.29,187.8,187.72,12.29]
[1722087417279,9.6088388,187.78,187.72,12.29]
[1722087417684,9.60884898,187.77,187.72,12.29]
[1722087418300,9.60884898,187.77,187.73,12.29]
[1722087418497,9.60884898,187.77,187.74,12.29]
[1722087419007,9.6088388,187.78,187.74,12.29]
[1722087419378,9.6088388,187.78,187.68,21.4005]
[1722087419379,9.60889564,187.77,187.73,12.29]
[1722087419579,9.6088388,187.78,187.73,12.29]
[1722087419794,9.60889942,187.77,187.73,12.29]
[1722087419998,9.6088388,187.78,187.73,12.29]
[1722087420192,9.60889863,187.77,187.73,12.29]
[1722087420389,9.6088388,187.78,187.73,12.29]
[1722087420596,9.60890414,187.77,187.73,12.29]
[1722087420915,9.60890414,187.76,187.68,21.4005]
[1722087421076,9.60890414,187.77,187.71,12.29]
[1722087421484,9.60890414,187.77,187.65,436.56]
[1722087421485,6.2101,187.76,187.6,21.2373]
[1722087421809,9.60890414,187.75,187.7,12.29]
[1722087422100,9.60890414,187.77,187.72,12.29]
[1722087422299,9.60911052,187.76,187.71,12.29]
[1722087422511,9.60911052,187.75,187.71,12.29]
[1722087422809,12.29,187.77,187.66,1.06525988]
[1722087423108,9.60911401,187.76,187.7,12.29]
[1722087423281,9.60911401,187.76,187.71,12.29]
[1722087423483,12.29,187.78,187.71,12.29]
[1722087423686,9.60911346,187.75,187.71,12.29]
[1722087423989,12.29,187.77,187.7,12.29]
[1722087424190,9.60910698,187.76,187.71,12.29]
[1722087424385,9.60910698,187.75,187.71,12.29]
[1722087424602,1.23595306,187.78,187.72,12.29]
[1722087424907,9.60910775,187.77,187.72,12.29]
[1722087425206,9.60910775,187.77,187.65,65.23]
[1722087425207,9.60910775,187.76,187.7,12.29]
[1722087425406,9.60910775,187.75,187.7,12.29]
[1722087425586,9.60910775,187.76,187.7,12.29]
[1722087426704,9.60910775,187.76,187.65,49.16]
[1722087426705,12.29,187.76,187.69,12.29]
[1722087426880,9.60916377,187.75,187.69,12.29]
[1722087427312,12.29,187.76,187.69,12.29]
[1722087427904,9.60916602,187.75,187.69,12.29]
[1722087428215,21.89916602,187.75,187.69,12.29]
[1722087428415,12.29,187.73,187.6,39.46095021]
[1722087428587,12.29,187.72,187.65,12.29]
[1722087428787,20.0,187.75,187.64,12.29]
[1722087428788,12.29,187.71,187.64,12.29]
[1722087428998,28.6621,187.71,187.64,12.29]
[1722087429204,16.3721,187.71,187.64,12.29]
[1722087429400,16.3721,187.71,187.67,12.29]
[1722087429597,16.3721,187.75,187.7,12.29]
[1722087429806,16.3721,187.75,187.72,12.29]
[1722087429807,9.60945602,187.74,187.72,12.29]
[1722087430186,9.60926571,187.74,187.72,12.29]
[1722087430607,16.3721,187.75,187.71,12.29]
[1722087430814,9.60917977,187.74,187.71,12.29]
[1722087431007,16.3721,187.75,187.7,12.29]
[1722087431314,9.60917393,187.74,187.69,12.29]
[1722087431506,16.3721,187.75,187.7,12.29]
[1722087431702,21.89929149,187.74,187.61,387.4]
[1722087431914,16.3721,187.75,187.68,12.29]
[1722087431915,9.60929149,187.73,187.68,12.29]
[1722087432091,9.60929149,187.74,187.68,12.29]
[1722087432297,12.29,187.71,187.62,1.06529927]
[1722087432500,12.29,187.71,187.6,37.3073]
[1722087432501,21.89929149,187.7,187.64,12.29]
[1722087432790,9.60929149,187.69,187.67,12.29]
[1722087433003,9.60929149,187.69,187.6,21.2373]
[1722087433004,9.60929149,187.71,187.6,21.2373]
[1722087433207,12.29,187.72,187.6,21.2373]
[1722087433392,12.29,187.72,187.63,12.29]
[1722087433393,21.90224895,187.7,187.63,12.29]
[1722087433593,21.90224895,187.7,187.6,21.2373]
[1722087433792,13.52595306,187.69,187.62,12.29]
[1722087433993,10.84820201,187.69,187.63,12.29]
[1722087434193,12.29,187.64,187.52,1.06589647]
[1722087434496,12.29,187.63,187.56,12.29]
[1722087434703,12.29,187.62,187.56,12.29]
[1722087434994,12.29,187.61,187.54,12.29]
[1722087435202,1.23595306,187.62,187.49,39.9291]
[1722087435511,20.0,187.6,187.49,15.3191]
[1722087435713,1.23595306,187.59,187.49,15.3191]
[1722087436904,1.23595306,187.59,187.49,40.99557294]
[1722087437110,1.23595306,187.59,187.49,40.99541247]
[1722087437512,1.23595306,187.59,187.49,39.9291]
[1722087438097,1.23595306,187.59,187.5,20.0]
[1722087438312,1.23595306,187.59,187.49,39.9291]
[1722087438613,66.23595306,187.59,187.44,408.8714]
[1722087438798,66.23595306,187.59,187.44,21.4714]
[1722087438799,20.0,187.57,187.44,21.4714]
[1722087438998,1.23595306,187.56,187.44,21.4714]
[1722087439210,46.23595306,187.56,187.44,21.4714]
[1722087439397,1.23595306,187.56,187.44,21.4714]
[1722087439803,1.23595306,187.56,187.46,24.61]
[1722087440009,1.23595306,187.56,187.47,1.0665207]
[1722087440204,1.23595306,187.56,187.46,25.67642944]
[1722087440413,1.23595306,187.56,187.47,20.0]
[1722087442404,1.23595306,187.56,187.44,21.4714]
[1722087442405,1.23595306,187.56,187.45,20.0]
[1722087444000,1.23595306,187.56,187.45,21.0666479]
[1722087445425,1.23595306,187.56,187.45,20.0]
[1722087445623,1.23595306,187.56,187.45,21.0666417]
[1722087445818,1.23595306,187.56,187.45,20.0]
[1722087446242,1.23595306,187.56,187.46,25.67660711]
[1722087446524,42.0504,187.6,187.49,24.61]
[1722087446525,22.0504,187.6,187.49,24.61]
[1722087446711,22.0504,187.6,187.5,65.0]
[1722087446918,15.4416,187.6,187.51,1.06628903]
[1722087447525,15.4416,187.6,187.52,1.06627771]
[1722087447824,1.23595306,187.59,187.5,20.0]
[1722087448029,1.23595306,187.59,187.48,1.06632834]
[1722087448238,1.23595306,187.59,187.46,20.0]
[1722087448239,1.23595306,187.59,187.49,1.06632925]
[1722087448824,15.4416,187.6,187.49,1.06632925]
[1722087448825,15.4416,187.6,187.51,24.61]
[1722087449131,15.4416,187.6,187.49,62.09632925]
[1722087449132,16.6594,187.66,187.54,24.61]
[1722087449312,16.6594,187.66,187.55,66.06596844]
[1722087449712,16.6594,187.66,187.57,24.61]
[1722087449917,6.3294,187.69,187.58,66.06574283]
[1722087450630,16.6594,187.71,187.58,66.06574283]
[1722087451422,16.6594,187.71,187.58,82.09574283]
[1722087451822,16.6594,187.71,187.6,24.61]
[1722087452009,16.6594,187.71,187.61,66.06561766]
[1722087452813,16.6594,187.71,187.61,82.09561766]
[1722087453840,16.6594,187.71,187.61,65.0]
[1722087454712,16.6594,187.71,187.61,66.0656245]
[1722087455806,16.6594,187.71,187.61,65.0]
[1722087458128,16.5476,187.77,187.63,40.64]
[1722087458314,16.5476,187.77,187.64,66.06539758]
[1722087459308,16.5476,187.77,187.65,17.09539808]
[1722087459511,16.5476,187.77,187.68,24.61]
[1722087459827,16.5476,187.77,187.69,21.06525978]
[1722087460014,16.5476,187.82,187.69,36.03]
[1722087460334,16.5476,187.82,187.7,45.0]
[1722087460516,16.5476,187.82,187.71,20.0]
[1722087460932,17.78355306,187.82,187.71,20.0]
[1722087461111,17.78355306,187.82,187.68,24.61]
[1722087461112,17.78355306,187.82,187.69,21.06517699]
[1722087461318,17.78355306,187.82,187.7,45.0]
[1722087461632,17.78355306,187.82,187.71,20.0]
[1722087461832,17.78355306,187.82,187.72,45.0]
[1722087462130,17.78355306,187.82,187.73,20.0]
[1722087463222,17.78355306,187.82,187.74,1.06495595]
[1722087463616,17.78355306,187.82,187.72,21.06502001]
[1722087465628,17.78355306,187.82,187.69,21.06508558]
[1722087465941,17.78355306,187.82,187.7,45.0]
[1722087466242,17.78355306,187.82,187.71,21.06517964]
[1722087466841,17.78355306,187.82,187.72,20.0]
[1722087467021,17.78355306,187.82,187.69,21.06508862]
[1722087467715,1.23595306,187.81,187.69,20.0]
[1722087467922,1.23595306,187.81,187.7,1.06522329]
[1722087469140,1.23595306,187.81,187.69,21.06509384]
[1722087469347,1.23595306,187.81,187.7,45.0]
[1722087469556,1.23595306,187.81,187.71,20.0]
[1722087469919,1.23595306,187.81,187.71,21.06510542]
[1722087470231,1.23595306,187.81,187.71,20.0]
[1722087471344,1.23595306,187.81,187.71,21.06514607]
[1722087471547,1.23595306,187.81,187.72,45.0]
[1722087471750,1.23595306,187.81,187.73,20.0]
[1722087472451,16.5476,187.82,187.73,20.0]
[1722087474973,16.5476,187.82,187.74,46.06503565]
[1722087475178,16.5476,187.82,187.74,45.0]
[1722087475465,16.5476,187.82,187.75,20.0]
[1722087475969,16.5476,187.82,187.72,21.06492708]
[1722087476134,16.5476,187.82,187.73,45.0]
[1722087476334,16.5476,187.82,187.74,20.0]
[1722087476633,16.5476,187.82,187.74,21.06497557]
[1722087476834,16.5476,187.82,187.74,20.0]
[1722087479440,16.5476,187.82,187.72,20.0]
[1722087480146,16.1937,187.86,187.73,46.06498781]
[1722087480344,16.1937,187.86,187.74,20.0]
[1722087480643,16.1937,187.86,187.75,1.06493066]
[1722087482569,16.1937,187.86,187.75,46.06493066]
[1722087482858,16.1937,187.86,187.76,20.0]
[1722087483859,21.5168,187.86,187.72,37.09489435]
[1722087484070,16.1937,187.86,187.73,45.0]
[1722087484359,16.1937,187.86,187.74,20.0]
[1722087484744,1.23595306,187.85,187.74,20.0]
[1722087484954,1.23595306,187.85,187.74,21.06499257]
[1722087485659,1.23595306,187.85,187.74,20.0]
[1722087485856,1.23595306,187.85,187.75,1.06499356]
[1722087486668,1.23595306,187.85,187.74,61.70491531]
[1722087486962,239.7750793,187.88,187.77,24.61]
[1722087487268,239.7750793,187.88,187.82,12.27]
[1722087487869,252.0450793,187.88,187.78,20.0]
[1722087488154,252.0450793,187.88,187.81,12.27]
[1722087488560,239.7750793,187.88,187.81,12.27]
[1722087488865,252.0450793,187.88,187.81,12.27]
[1722087489044,239.7750793,187.88,187.77,21.06472801]
[1722087489244,239.7750793,187.88,187.78,45.0]
[1722087489451,239.7750793,187.88,187.79,20.0]
[1722087489979,239.7750793,187.88,187.8,1.06467131]
[1722087490358,239.7750793,187.88,187.8,62.09467131]
[1722087490564,239.7750793,187.88,187.81,20.0]
[1722087490865,239.7750793,187.88,187.82,45.0]
[1722087491065,239.7750793,187.88,187.83,20.0]
[1722087491664,239.7750793,187.88,187.8,20.0]
[1722087493654,239.7750793,187.88,187.81,45.0]
[1722087493852,239.7750793,187.88,187.82,20.0]
[1722087494364,239.7750793,187.88,187.8,20.0]
[1722087499868,239.7750793,187.88,187.77,21.06466419]
[1722087500068,239.7750793,187.88,187.78,45.0]
[1722087500283,239.7750793,187.88,187.79,20.0]
[1722087501288,239.7750793,187.88,187.78,45.0]
[1722087501289,27.74225306,187.87,187.76,387.4]
[1722087501584,6.55905306,187.86,187.76,387.4]
[1722087501788,1.23595306,187.85,187.76,387.4]
[1722087502090,1.23595306,187.85,187.71,40.57]
[1722087502288,1.23595306,187.85,187.72,1.06496648]
[1722087502796,1.23595306,187.85,187.73,16.03]
[1722087502997,1.23595306,187.85,187.74,37.09479099]
[1722087503185,1.23595306,187.85,187.74,17.09479099]
[1722087503386,1.23595306,187.85,187.75,20.0]
[1722087503583,1.23595306,187.85,187.72,21.06480531]
[1722087503770,1.23595306,187.85,187.73,45.0]
[1722087503974,6.55935306,187.85,187.71,41.63495869]
[1722087504183,5.3236,187.84,187.71,41.63495869]
[1722087504395,6.55955306,187.84,187.71,25.60495869]
[1722087504602,1.23595306,187.84,187.71,25.60503591]
[1722087504804,1.23595306,187.83,187.71,25.60503591]
[1722087505190,1.23595306,187.83,187.71,1.06506463]
[1722087505396,16.1225,187.82,187.68,41.63507749]
[1722087505796,16.1225,187.82,187.69,61.03]
[1722087505989,16.1225,187.82,187.71,24.54]
[1722087506190,16.1225,187.82,187.72,46.06501774]
[1722087506596,16.1225,187.82,187.73,20.0]
[1722087507803,16.1225,187.82,187.71,24.54]
[1722087507804,16.1225,187.82,187.72,20.0]
[1722087507994,16.1225,187.82,187.73,45.0]
[1722087508204,16.1225,187.82,187.74,20.0]
[1722087508404,16.1225,187.82,187.74,21.06500235]
[1722087508596,16.1225,187.82,187.75,45.0]
[1722087508798,16.1225,187.82,187.76,21.06484489]
[1722087508999,16.1225,187.82,187.76,20.0]
[1722087509194,16.1225,187.82,187.78,12.27]
[1722087509830,16.1225,187.82,187.79,12.27]
[1722087510192,16.1225,187.82,187.75,20.0]
[1722087510398,16.1225,187.82,187.78,12.27]
[1722087510693,16.1225,187.82,187.79,12.27]
[1722087511513,34.408,187.87,187.8,12.27]
[1722087512305,34.408,187.87,187.74,66.17488374]
[1722087512613,12.27,187.85,187.75,20.0]
[1722087512808,1.23595306,187.86,187.76,12.27]
[1722087513117,12.27,187.85,187.78,12.27]
[1722087513317,12.27,187.85,187.79,20.0]
[1722087513520,13.50595306,187.86,187.79,32.27]
[1722087515317,1.23595306,187.86,187.8,12.27]
[1722087516499,1.23595306,187.86,187.79,20.0]
[1722087516700,13.50595306,187.86,187.75,21.06484648]
[1722087518606,1.23595306,187.86,187.76,45.0]
[1722087518806,1.23595306,187.86,187.77,20.0]
[1722087520209,1.23595306,187.86,187.77,21.06485506]
[1722087520408,1.23595306,187.86,187.75,21.06485506]
[1722087520609,1.23595306,187.86,187.76,45.0]
[1722087520810,1.23595306,187.86,187.77,20.0]
[1722087521611,1.23595306,187.86,187.78,1.06486732]
[1722087522218,1.23595306,187.86,187.75,21.0648375]
[1722087522523,1.23595306,187.86,187.76,45.0]
[1722087522727,1.23595306,187.86,187.77,20.0]
[1722087523033,1.23595306,187.86,187.81,12.27]
[1722087524316,1.23595306,187.86,187.82,12.27]
[1722087524519,1.23595306,187.86,187.81,12.27]
[1722087525328,1.23595306,187.86,187.77,20.0]
[1722087525512,1.23595306,187.86,187.81,12.27]
[1722087525830,6.55915306,187.86,187.8,12.27]
[1722087526130,1.23595306,187.86,187.8,12.27]
[1722087526835,9.60501163,187.85,187.8,12.27]
[1722087527012,1.23595306,187.86,187.8,12.27]
[1722087527220,9.60507607,187.85,187.8,12.27]
[1722087527422,1.23595306,187.86,187.8,12.27]
[1722087527639,13.50595306,187.86,187.79,12.27]
[1722087528042,9.60507607,187.85,187.79,12.27]
[1722087528336,13.50595306,187.86,187.79,12.27]
[1722087528541,9.60508752,187.85,187.78,12.27]
[1722087528720,13.50595306,187.86,187.79,20.0]
[1722087528923,9.60505503,187.85,187.79,20.0]
[1722087529227,13.50595306,187.86,187.79,33.33486445]
[1722087529429,9.60499672,187.85,187.79,33.33486445]
[1722087529614,1.23595306,187.86,187.8,12.27]
[1722087529817,9.60499505,187.85,187.8,12.27]
[1722087530019,13.50595306,187.86,187.79,12.27]
[1722087530220,9.60497629,187.85,187.79,12.27]
[1722087530444,13.50595306,187.86,187.79,12.27]
[1722087530944,9.60502698,187.85,187.79,12.27]
[1722087531447,13.50595306,187.86,187.79,12.27]
[1722087532622,12.27,187.85,187.78,12.27]
[1722087533240,1.23595306,187.86,187.79,12.27]
[1722087533432,1.23595306,187.86,187.8,12.27]
[1722087533643,9.6047589,187.85,187.79,12.27]
[1722087533953,13.50595306,187.86,187.79,12.27]
[1722087534544,9.60480041,187.85,187.79,12.27]
[1722087534762,13.50595306,187.86,187.74,49.08]
[1722087535048,9.60479881,187.85,187.82,12.27]
[1722087535246,1.23595306,187.86,187.82,12.27]
[1722087535626,1.23595306,187.86,187.81,12.27]